fUST/lending_fUST_20250923
["ID","MTS","AMOUNT","RATE_DAILY","PERIOD"]
[387185647,1758621046658,-151.0,0.00019074,2]
[387185648,1758621046667,-151.0,0.00019074,2]
[387185649,1758621046676,-151.0,0.00019074,2]
[387185650,1758621046685,-240.754839,0.00019074,2]
[387185651,1758621046694,-176.499067,0.00019074,2]
[387185652,1758621046702,-277.175688,0.00019074,2]
[387185653,1758621046716,-277.175688,0.00019074,2]
[387185654,1758621046725,-277.175688,0.00019074,2]
[387185655,1758621046734,-277.175688,0.00019074,2]
[387185656,1758621046743,-277.175688,0.00019074,2]
[387185657,1758621046752,-277.175688,0.00019074,2]
[387185658,1758621046762,-277.175688,0.00019074,2]
[387185659,1758621046771,-277.175688,0.00019074,2]
[387185660,1758621046781,-151.0,0.00019074,2]
[387185661,1758621046790,-151.0,0.00019074,2]
[387185662,1758621046799,-311.712156,0.00019074,2]
[387185663,1758621046808,-311.712156,0.00019074,2]
[387185664,1758621046817,-311.712156,0.00019074,2]
[387185666,1758621046827,-311.712156,0.00019074,2]
[387185667,1758621046837,-151.0,0.00019074,2]
[387185669,1758621046847,-151.0,0.00019074,2]
[387185671,1758621046856,-311.712156,0.00019074,2]
[387185673,1758621046866,-311.712156,0.00019074,2]
[387185675,1758621046875,-311.712156,0.00019074,2]
[387185677,1758621046885,-111.80965113,0.00019074,2]
[387185680,1758621046908,-199.90250487,0.00019074,2]
[387185682,1758621046917,-151.0,0.00019074,2]
[387185684,1758621046926,-151.0,0.00019074,2]
[387185686,1758621046936,-151.0,0.00019074,2]
[387185696,1758621047012,-56.72765823,0.00019074,2]
[387185698,1758621047033,-94.27234177,0.00019074,2]
[387185700,1758621047042,-201.608509,0.00019074,2]
[387185702,1758621047051,-151.0,0.00019074,2]
[387185704,1758621047062,-201.608509,0.00019074,2]
[387185706,1758621047071,-40.36184914,0.00019074,2]
[387185709,1758621047081,-110.63815086,0.00019074,2]
[387185711,1758621047090,-151.0,0.00019074,2]
[387185713,1758621047100,-1024.349042,0.00019074,2]
[387185714,1758621047109,-201.608509,0.00019074,2]
[387185716,1758621047118,-151.0,0.00019074,2]
[387185718,1758621047127,-408.76001162,0.00019074,2]
[387185721,1758621047142,-615.58903038,0.00019074,2]
[387185723,1758621047150,-201.608509,0.00019074,2]
[387185725,1758621047159,-1024.349042,0.00019074,2]
[387185727,1758621047168,-151.0,0.00019074,2]
[387185729,1758621047178,-201.608509,0.00019074,2]
[387185731,1758621047187,-1024.349042,0.00019074,2]
[387185733,1758621047196,-151.0,0.00019074,2]
[387185735,1758621047205,-201.608509,0.00019074,2]
[387185737,1758621047215,-1024.349042,0.00019074,2]
[387185739,1758621047224,-201.608509,0.00019074,2]
[387185741,1758621047233,-1024.349042,0.00019074,2]
[387185743,1758621047242,-201.608509,0.00019074,2]
[387185745,1758621047251,-1024.349042,0.00019074,2]
[387185747,1758621047260,-1024.349042,0.00019074,2]
[387185749,1758621047269,-151.0,0.00019074,2]
[387185751,1758621047278,-151.0,0.00019074,2]
[387185753,1758621047288,-245.69039455,0.00019074,2]
[387185755,1758621047297,-151.0,0.00019074,2]
[387185757,1758621047306,-151.0,0.00019074,2]
[387185759,1758621047315,-500.0,0.00019074,2]
[387185761,1758621047324,-316.886051,0.00019074,2]
[387185763,1758621047333,-316.886051,0.00019074,2]
[387185765,1758621047342,-500.0,0.00019074,2]
[387185766,1758621047351,-316.886051,0.00019074,2]
[387185768,1758621047360,-316.886051,0.00019074,2]
[387185770,1758621047369,-158.16977283,0.00019074,2]
[387185772,1758621047378,-316.886051,0.00019074,2]
[387185774,1758621047388,-151.0,0.00019074,2]
[387185776,1758621047397,-316.886051,0.00019074,2]
[387185778,1758621047407,-316.886051,0.00019074,2]
[387185780,1758621047416,-316.886051,0.00019074,2]
[387185782,1758621047425,-151.0,0.00019074,2]
[387185784,1758621047434,-151.0,0.00019074,2]
[387185786,1758621047443,-151.0,0.00019074,2]
[387185788,1758621047453,-151.0,0.00019074,2]
[387185790,1758621047464,-151.0,0.00019074,2]
[387185792,1758621047473,-151.0,0.00019074,2]
[387185794,1758621047483,-151.0,0.00019074,2]
[387185796,1758621047492,-151.0,0.00019074,2]
[387185798,1758621047502,-151.0,0.00019074,2]
[387185801,1758621047511,-151.0,0.00019074,2]
[387185802,1758621047520,-500.0,0.00019074,2]
[387185804,1758621047529,-151.0,0.00019074,2]
[387185806,1758621047538,-151.0,0.00019074,2]
[387185808,1758621047547,-151.0,0.00019074,2]
[387185810,1758621047556,-151.0,0.00019074,2]
[387185812,1758621047565,-151.0,0.00019074,2]
[387185814,1758621047574,-151.0,0.00019074,2]
[387185816,1758621047584,-272.297319,0.00019074,2]
[387185818,1758621047593,-151.0,0.00019074,2]
[387185820,1758621047602,-151.0,0.00019074,2]
[387185822,1758621047611,-204.272908,0.00019074,2]
[387185824,1758621047620,-204.272908,0.00019074,2]
[387185826,1758621047629,-151.0,0.00019074,2]
[387185828,1758621047638,-151.0,0.00019074,2]
[387185830,1758621047647,-107.76803784,0.00019074,2]
[387186344,1758621226868,-678.0929267,0.00018974,2]
[387186345,1758621226910,-221.42691504,0.00018975,2]
[387186346,1758621227100,-2897.335714,0.00018975,2]
[387186347,1758621227162,-10000.01,0.00018975,2]
[387186348,1758621227234,-10000.01,0.00018975,2]
[387186349,1758621227378,-10000.01,0.00018975,2]
[387186350,1758621227532,-10000.01,0.00018975,2]
[387186351,1758621249652,-177.87262455,0.00018075,2]
[387186352,1758621251793,-312.87635134,0.00018075,2]
[387186353,1758621255553,-209.67126957,0.00018075,2]
[387186354,1758621258343,-160.0,0.00018075,2]
[387186355,1758621262693,-139.57975454,0.00018075,2]
[387186356,1758621306943,-302.69714875,0.000189,2]
[387186357,1758621306970,-300.0,0.00018974,2]
[387186358,1758621306997,-300.0,0.00018974,2]
[387186359,1758621307025,-1200.0,0.00018974,2]
[387186360,1758621307100,-5794.6157025,0.00018975,2]
[387186363,1758621459362,-160.42024546,0.0001812,2]
[387186364,1758621462518,-158.85816134,0.0001812,2]
[387186365,1758621466385,-233.78652718,0.0001812,2]
[387186366,1758621469061,-200.61549064,0.0001812,2]
[387186367,1758621498489,283.80834538,0.00018406,2]
[387186368,1758621508112,2177.80433592,0.00018,2]
[387186369,1758621556534,283.515633,0.00017983,2]
[387186370,1758621627688,-3000.0,0.000185,2]
[387186371,1758621627716,-500.0,0.000185,2]
[387186372,1758621627744,-0.01,0.000189,2]
[387186373,1758621627831,-254.8616857,0.000189,2]
[387186374,1758621673212,-263.39481161,0.0001812,2]
[387186375,1758621676596,-285.13344789,0.0001812,2]
[387186376,1758621677687,-97.27846062,0.0001812,2]
[387186377,1758621677714,-2580.64365361,0.0001812,2]
[387186378,1758621677743,-1151.0,0.00018642,2]
[387186379,1758621677772,-168.0,0.00018709,2]
[387186380,1758621677910,-2006.16577154,0.000189,2]
[387186382,1758621928304,-244.36573667,0.00018013,2]
[387186383,1758621931606,-204.31929734,0.00018013,2]
[387186384,1758621933640,-217.31496599,0.00018013,2]
[387186388,1758622088350,279.324392,0.00017984,2]
[387186389,1758622164830,1000.0,0.00017995,2]
[387186419,1758622232746,-644.6551916,0.0001889,2]
[387186421,1758622232756,-738.96254276,0.000189,2]
[387186423,1758622232766,-1200.0,0.00018974,2]
[387186425,1758622232776,-5090.97976782,0.00018975,2]
[387186427,1758622232785,-300.0,0.0001898,2]
[387186429,1758622232794,-300.0,0.0001898,2]
[387186431,1758622232804,-1200.0,0.00018981,2]
[387186433,1758622232814,-1151.0,0.00018982,2]
[387186435,1758622232823,-500.0,0.00018989,2]
[387186437,1758622232833,-208.93229019,0.00018989,2]
[387186439,1758622232842,-594.04755892,0.00018989,2]
[387186441,1758622232852,-409.86159844,0.00018989,2]
[387186443,1758622232861,-500.0,0.00018989,2]
[387186445,1758622232871,-500.0,0.00018989,2]
[387186447,1758622232880,-500.0,0.00018989,2]
[387186449,1758622232890,-500.0,0.00018989,2]
[387186451,1758622232900,-500.0,0.00018989,2]
[387186453,1758622232910,-500.0,0.00018989,2]
[387186455,1758622232919,-500.0,0.00018989,2]
[387186457,1758622232929,-9725.27076506,0.00018989,2]
[387186459,1758622232940,-9456.96678379,0.00018989,2]
[387186461,1758622232952,-2820.72472417,0.00018989,2]
[387186463,1758622232961,-1439.09382492,0.0001899,2]
[387186465,1758622232972,-2577.99281836,0.0001899,2]
[387186467,1758622232983,-2373.7000001,0.0001899,2]
[387186470,1758622232998,-1234.50952075,0.0001899,2]
[387186472,1758622233009,-254.65759314,0.0001899,2]
[387186474,1758622233025,-36254.49799546,0.0001899,2]
[387186489,1758622238582,-385.19165315,0.0001899,2]
[387186490,1758622238595,-268.61921822,0.0001899,2]
[387186491,1758622238758,-9376.91495238,0.0001899,2]
[387186492,1758622238770,-961.7599996,0.0001899,2]
[387186521,1758622240587,-839.44517487,0.0001899,2]
[387186528,1758622240640,-9627.13432,0.0001899,2]
[387186544,1758622240819,-18.96729593,0.0001899,2]
[387186545,1758622240831,-34387.51563312,0.0001899,2]
[387186546,1758622240840,-687.69975254,0.0001905,2]
[387186547,1758622240849,-656.31883129,0.00019064,2]
[387186548,1758622240858,-426.76215032,0.00019064,2]
[387186549,1758622240868,-656.31883129,0.00019064,2]
[387186550,1758622240877,-656.31883129,0.00019064,2]
[387186551,1758622240887,-656.31883129,0.00019064,2]
[387186552,1758622240896,-222.19,0.00019065,3]
[387186553,1758622240905,-666.61,0.00019065,3]
[387186554,1758622240915,-181.08010149,0.00019067,2]
[387186555,1758622240924,-151.0,0.00019067,2]
[387186556,1758622240934,-492.77,0.00019073,2]
[387186557,1758622240944,-2728.3039287,0.00019074,2]
[387186558,1758622240953,-500.0,0.00019075,2]
[387186559,1758622240963,-151.0,0.00019077,2]
[387186560,1758622240972,-151.0,0.00019077,2]
[387186561,1758622240981,-151.0,0.00019077,2]
[387186562,1758622240990,-151.0,0.00019077,2]
[387186563,1758622240999,-151.0,0.00019077,2]
[387186564,1758622241008,-151.0,0.00019077,2]
[387186565,1758622241017,-151.0,0.00019077,2]
[387186566,1758622241026,-151.0,0.00019077,2]
[387186567,1758622241036,-151.0,0.00019077,2]
[387186568,1758622241045,-282.569014,0.00019077,2]
[387186569,1758622241055,-233.614639,0.00019077,2]
[387186570,1758622241068,-233.614639,0.00019077,2]
[387186571,1758622241078,-233.614639,0.00019077,2]
[387186572,1758622241087,-233.614639,0.00019077,2]
[387186573,1758622241095,-153.992093,0.00019077,2]
[387186574,1758622241104,-199.43614688,0.00019077,2]
[387186575,1758622241114,-500.0,0.00019077,2]
[387186576,1758622241122,-151.0,0.00019077,2]
[387186577,1758622241131,-151.0,0.00019077,2]
[387186578,1758622241139,-151.0,0.00019077,2]
[387186579,1758622241148,-151.0,0.00019077,2]
[387186580,1758622241157,-151.0,0.00019077,2]
[387186581,1758622241166,-151.0,0.00019077,2]
[387186582,1758622241175,-151.0,0.00019077,2]
[387186583,1758622241184,-151.0,0.00019077,2]
[387186584,1758622241302,-725.823024,0.00019077,2]
[387186585,1758622241314,-151.0,0.00019077,2]
[387186586,1758622241324,-725.823024,0.00019077,2]
[387186587,1758622241336,-151.0,0.00019077,2]
[387186588,1758622241345,-151.0,0.00019077,2]
[387186589,1758622241355,-151.0,0.00019077,2]
[387186590,1758622241364,-725.823024,0.00019077,2]
[387186591,1758622241373,-151.0,0.00019077,2]
[387186592,1758622241381,-151.0,0.00019077,2]
[387186593,1758622241390,-725.823024,0.00019077,2]
[387186594,1758622241399,-151.0,0.00019077,2]
[387186595,1758622241408,-151.0,0.00019077,2]
[387186596,1758622241417,-151.237127,0.00019077,2]
[387186597,1758622241426,-151.0,0.00019077,2]
[387186598,1758622241436,-190.13163,0.00019077,2]
[387186599,1758622241445,-151.0,0.00019077,2]
[387186600,1758622241454,-190.13163,0.00019077,2]
[387186601,1758622241463,-151.0,0.00019077,2]
[387186602,1758622241473,-190.13163,0.00019077,2]
[387186603,1758622241484,-190.13163,0.00019077,2]
[387186604,1758622241493,-151.0,0.00019077,2]
[387186605,1758622241502,-151.0,0.00019077,2]
[387186606,1758622241511,-151.0,0.00019077,2]
[387186607,1758622241520,-245.9805519,0.00019077,2]
[387186608,1758622241530,-246.29921161,0.00019077,2]
[387186609,1758622241539,-151.0,0.00019077,2]
[387186610,1758622241549,-183.845618,0.00019077,2]
[387186611,1758622241559,-151.0,0.00019077,2]
[387186612,1758622241569,-183.845618,0.00019077,2]
[387186613,1758622241577,-151.0,0.00019077,2]
[387186614,1758622241586,-151.0,0.00019077,2]
[387186615,1758622241594,-151.0,0.00019077,2]
[387186616,1758622241612,-183.845618,0.00019077,2]
[387186617,1758622241621,-151.0,0.00019077,2]
[387186618,1758622241631,-151.0,0.00019077,2]
[387186619,1758622241640,-183.845618,0.00019077,2]
[387186620,1758622241650,-151.0,0.00019077,2]
[387186621,1758622241659,-151.47021092,0.00019077,2]
[387186622,1758622241668,-177.556746,0.00019077,2]
[387186623,1758622241678,-151.0,0.00019077,2]
[387186624,1758622241687,-151.0,0.00019078,2]
[387186625,1758622241697,-151.0,0.00019078,2]
[387186626,1758622241706,-151.0,0.00019078,2]
[387186627,1758622241717,-207.111466,0.00019078,2]
[387186628,1758622241726,-151.0,0.00019078,2]
[387186629,1758622241736,-157.440802,0.00019078,2]
[387186630,1758622241746,-157.440802,0.00019078,2]
[387186631,1758622241755,-151.0,0.00019078,2]
[387186632,1758622241765,-157.440802,0.00019078,2]
[387186633,1758622241774,-151.0,0.00019078,2]
[387186634,1758622241783,-151.0,0.00019078,2]
[387186635,1758622241793,-157.440802,0.00019078,2]
[387186636,1758622241802,-151.0,0.00019078,2]
[387186637,1758622241813,-151.0,0.00019078,2]
[387186638,1758622241823,-151.0,0.00019078,2]
[387186639,1758622241832,-151.0,0.00019078,2]
[387186640,1758622241841,-151.0,0.00019078,2]
[387186641,1758622241851,-944.458,0.00019078,2]
[387186642,1758622241860,-151.0,0.00019078,2]
[387186643,1758622241871,-151.0,0.00019078,2]
[387186644,1758622241880,-151.0,0.00019078,2]
[387186645,1758622241890,-194.50224,0.00019078,2]
[387186646,1758622241900,-151.0,0.00019078,2]
[387186647,1758622241911,-151.0,0.00019078,2]
[387186648,1758622241920,-151.0,0.00019078,2]
[387186649,1758622241930,-151.0,0.00019078,2]
[387186650,1758622241939,-300.81663,0.00019078,2]
[387186651,1758622241949,-151.0,0.00019078,2]
[387186652,1758622241958,-151.0,0.00019078,2]
[387186653,1758622241967,-151.0,0.00019078,2]
[387186654,1758622241977,-175.182646,0.00019078,2]
[387186655,1758622241986,-175.182646,0.00019078,2]
[387186656,1758622241995,-175.182646,0.00019078,2]
[387186657,1758622242005,-175.182646,0.00019078,2]
[387186658,1758622242014,-151.0,0.00019078,2]
[387186659,1758622242023,-151.0,0.00019078,2]
[387186660,1758622242032,-151.0,0.00019078,2]
[387186661,1758622242042,-151.0,0.00019078,2]
[387186662,1758622242051,-151.0,0.00019078,2]
[387186663,1758622242061,-151.0,0.00019078,2]
[387186664,1758622242072,-7885.89630004,0.00019078,2]
[387186665,1758622242081,-151.0,0.00019078,2]
[387186666,1758622242091,-623.064651,0.00019078,2]
[387186667,1758622242100,-623.064651,0.00019078,2]
[387186668,1758622242110,-623.064651,0.00019078,2]
[387186669,1758622242119,-623.064651,0.00019078,2]
[387186670,1758622242129,-151.0,0.00019078,2]
[387186671,1758622242138,-151.0,0.00019078,2]
[387186672,1758622242148,-151.0,0.00019078,2]
[387186673,1758622242157,-151.0,0.00019078,2]
[387186674,1758622242166,-261.328177,0.00019078,2]
[387186675,1758622242176,-151.0,0.00019078,2]
[387186676,1758622242185,-261.328177,0.00019078,2]
[387186677,1758622242195,-261.328177,0.00019078,2]
[387186678,1758622242204,-261.328177,0.00019078,2]
[387186679,1758622242213,-151.0,0.00019078,2]
[387186680,1758622242223,-151.0,0.00019078,2]
[387186681,1758622242232,-151.0,0.00019078,2]
[387186682,1758622242242,-151.0,0.00019078,2]
[387186683,1758622242251,-166.305413,0.00019078,2]
[387186684,1758622242262,-166.305413,0.00019078,2]
[387186685,1758622242271,-166.305413,0.00019078,2]
[387186686,1758622242280,-166.305413,0.00019078,2]
[387186687,1758622242290,-209.677293,0.00019078,2]
[387186688,1758622242299,-209.677293,0.00019078,2]
[387186689,1758622242309,-209.677293,0.00019078,2]
[387186690,1758622242318,-209.677293,0.00019078,2]
[387186691,1758622242327,-151.0,0.00019078,2]
[387186692,1758622242342,-151.0,0.00019078,2]
[387186693,1758622242351,-1151.0,0.00019107,2]
[387186694,1758622242361,-157.91,0.00019109,2]
[387186695,1758622242371,-151.0,0.0001915,2]
[387186696,1758622242383,-151.0,0.0001915,2]
[387186697,1758622242403,-151.0,0.0001915,2]
[387186698,1758622242413,-1000.0,0.0001915,2]
[387186699,1758622242422,-1000.0,0.0001915,2]
[387186700,1758622242432,-1000.0,0.0001915,2]
[387186701,1758622242441,-1000.0,0.0001915,2]
[387186702,1758622242450,-1000.0,0.0001915,2]
[387186703,1758622242459,-1000.0,0.0001915,2]
[387186704,1758622242469,-1000.0,0.0001915,2]
[387186705,1758622242478,-569.25478094,0.0001915,2]
[387186706,1758622242487,-151.0,0.0001915,2]
[387186707,1758622242497,-151.0,0.0001915,2]
[387186708,1758622242506,-151.0,0.0001915,2]
[387186709,1758622242515,-183.845618,0.0001915,2]
[387186710,1758622242524,-151.0,0.0001915,2]
[387186711,1758622242533,-183.845618,0.0001915,2]
[387186712,1758622242543,-151.0,0.0001915,2]
[387186713,1758622242552,-151.0,0.0001915,2]
[387186714,1758622242563,-183.845618,0.0001915,2]
[387186715,1758622242572,-151.0,0.0001915,2]
[387186716,1758622242581,-183.845618,0.0001915,2]
[387186717,1758622242591,-151.0,0.0001915,2]
[387186718,1758622242600,-177.556746,0.0001915,2]
[387186719,1758622242610,-151.0,0.0001915,2]
[387186720,1758622242620,-787.75,0.00019167,3]
[387186721,1758622242630,-393.87,0.00019167,3]
[387186722,1758622242640,-196.94,0.00019167,3]
[387186723,1758622242649,-590.84,0.00019167,3]
[387186724,1758622242659,-725.823024,0.00019167,2]
[387186725,1758622242668,-151.0,0.00019167,2]
[387186726,1758622242678,-725.823024,0.00019167,2]
[387186727,1758622242687,-151.0,0.00019167,2]
[387186728,1758622242696,-151.0,0.00019167,2]
[387186729,1758622242706,-177.320552,0.00019167,2]
[387186730,1758622242715,-725.823024,0.00019167,2]
[387186731,1758622242724,-151.0,0.00019167,2]
[387186732,1758622242733,-224.454836,0.00019167,2]
[387186733,1758622242742,-725.823024,0.00019167,2]
[387186734,1758622242752,-151.0,0.00019167,2]
[387186735,1758622242761,-151.0,0.00019167,2]
[387186736,1758622242770,-151.0,0.00019167,2]
[387186737,1758622242779,-190.13163,0.00019167,2]
[387186738,1758622242789,-151.0,0.00019167,2]
[387186739,1758622242798,-190.13163,0.00019167,2]
[387186740,1758622242809,-253.058215,0.00019167,2]
[387186741,1758622242819,-190.13163,0.00019167,2]
[387186742,1758622242828,-190.13163,0.00019167,2]
[387186743,1758622242837,-166.841102,0.00019167,2]
[387186744,1758622242847,-291.381666,0.00019171,2]
[387186745,1758622242855,-291.381666,0.00019171,2]
[387186746,1758622242865,-291.381666,0.00019171,2]
[387186747,1758622242874,-291.381666,0.00019171,2]
[387186748,1758622242884,-151.0,0.00019171,2]
[387186749,1758622242893,-151.0,0.00019171,2]
[387186750,1758622242903,-151.0,0.00019171,2]
[387186751,1758622242912,-151.0,0.00019171,2]
[387186752,1758622242922,-151.0,0.00019171,2]
[387186753,1758622242931,-151.0,0.00019171,2]
[387186754,1758622242940,-151.0,0.00019171,2]
[387186755,1758622242950,-151.0,0.00019171,2]
[387186756,1758622242959,-151.0,0.00019171,2]
[387186757,1758622242968,-151.0,0.00019171,2]
[387186758,1758622242977,-151.0,0.00019171,2]
[387186759,1758622242987,-267.91737,0.00019171,2]
[387186760,1758622242996,-228.68710181,0.00019172,2]
[387186761,1758622243005,-151.0,0.00019172,2]
[387186762,1758622243014,-151.0,0.00019172,2]
[387186763,1758622243023,-151.0,0.00019172,2]
[387186764,1758622243032,-151.0,0.00019172,2]
[387186765,1758622243042,-233.614639,0.00019172,2]
[387186766,1758622243052,-233.614639,0.00019172,2]
[387186767,1758622243063,-233.614639,0.00019172,2]
[387186768,1758622243072,-233.614639,0.00019172,2]
[387186769,1758622243082,-500.0,0.00019173,2]
[387186770,1758622243092,-500.0,0.00019173,2]
[387186771,1758622243101,-500.0,0.00019173,2]
[387186772,1758622243190,-500.0,0.00019173,2]
[387186773,1758622243200,-500.0,0.00019173,2]
[387186774,1758622243219,-151.0,0.00019173,2]
[387186775,1758622243238,-221.509196,0.00019173,2]
[387186776,1758622243248,-157.440802,0.00019173,2]
[387186777,1758622243258,-157.440802,0.00019173,2]
[387186778,1758622243267,-151.0,0.00019173,2]
[387186779,1758622243278,-157.440802,0.00019173,2]
[387186780,1758622243287,-151.0,0.00019173,2]
[387186781,1758622243297,-157.440802,0.00019173,2]
[387186782,1758622243306,-151.0,0.00019173,2]
[387186783,1758622243316,-151.0,0.00019173,2]
[387186784,1758622243326,-151.0,0.00019173,2]
[387186785,1758622243339,-151.0,0.00019173,2]
[387186786,1758622243348,-236.099497,0.00019173,2]
[387186787,1758622243358,-239.544101,0.00019173,2]
[387186788,1758622243367,-175.182646,0.00019173,2]
[387186789,1758622243378,-175.182646,0.00019173,2]
[387186790,1758622243387,-175.182646,0.00019173,2]
[387186791,1758622243396,-175.182646,0.00019173,2]
[387186792,1758622243405,-151.0,0.00019173,2]
[387186794,1758622243416,-151.0,0.00019173,2]
[387186795,1758622243426,-151.0,0.00019173,2]
[387186796,1758622243435,-151.0,0.00019173,2]
[387186797,1758622243444,-151.0,0.00019173,2]
[387186798,1758622243453,-151.0,0.00019173,2]
[387186799,1758622243462,-623.064651,0.00019173,2]
[387186800,1758622243471,-623.064651,0.00019173,2]
[387186801,1758622243481,-623.064651,0.00019173,2]
[387186802,1758622243490,-623.064651,0.00019173,2]
[387186803,1758622243499,-166.234803,0.00019176,2]
[387186804,1758622243509,-151.0,0.00019176,2]
[387186805,1758622243518,-151.0,0.00019176,2]
[387186806,1758622243527,-151.0,0.00019176,2]
[387186807,1758622243536,-258.885113,0.00019176,2]
[387186808,1758622243546,-151.0,0.00019176,2]
[387186809,1758622243556,-151.0,0.00019176,2]
[387186810,1758622243566,-151.0,0.00019176,2]
[387186812,1758622243575,-151.0,0.00019176,2]
[387186813,1758622243584,-151.0,0.00019176,2]
[387186814,1758622243594,-151.0,0.00019176,2]
[387186815,1758622243604,-226.676659,0.00019176,2]
[387186816,1758622243614,-151.0,0.00019176,2]
[387186817,1758622243623,-151.0,0.00019176,2]
[387186818,1758622243633,-261.328177,0.00019176,2]
[387186819,1758622243642,-261.328177,0.00019176,2]
[387186820,1758622243652,-261.328177,0.00019176,2]
[387186821,1758622243662,-261.328177,0.00019176,2]
[387186822,1758622243671,-151.0,0.00019176,2]
[387186824,1758622243681,-151.0,0.00019176,2]
[387186826,1758622243691,-151.0,0.00019176,2]
[387186827,1758622243700,-151.0,0.00019176,2]
[387186829,1758622243710,-166.305413,0.00019176,2]
[387186830,1758622243719,-166.305413,0.00019176,2]
[387186832,1758622243728,-166.305413,0.00019176,2]
[387186834,1758622243737,-166.305413,0.00019176,2]
[387186836,1758622243746,-209.677293,0.00019176,2]
[387186838,1758622243756,-209.677293,0.00019176,2]
[387186840,1758622243765,-209.677293,0.00019176,2]
[387186842,1758622243775,-209.677293,0.00019176,2]
[387186844,1758622243784,-151.0,0.00019176,2]
[387186846,1758622243795,-151.0,0.00019176,2]
[387186848,1758622243804,-24572.00827748,0.00019177,2]
[387186850,1758622243815,-159.459233,0.00019177,2]
[387186852,1758622243824,-151.0,0.00019177,2]
[387186854,1758622243833,-151.0,0.00019177,2]
[387186855,1758622243842,-151.0,0.00019177,2]
[387186856,1758622243852,-208.984,0.00019177,2]
[387186857,1758622243861,-151.0,0.00019177,2]
[387186858,1758622243870,-151.0,0.00019177,2]
[387186859,1758622243879,-233.614639,0.00019177,2]
[387186860,1758622243888,-233.614639,0.00019177,2]
[387186861,1758622243899,-233.614639,0.00019177,2]
[387186862,1758622243908,-233.614639,0.00019177,2]
[387186863,1758622243917,-151.0,0.00019177,2]
[387186864,1758622243926,-157.440802,0.00019177,2]
[387186865,1758622243936,-157.440802,0.00019177,2]
[387186866,1758622243945,-151.0,0.00019177,2]
[387186868,1758622243954,-157.440802,0.00019177,2]
[387186870,1758622243964,-151.0,0.00019177,2]
[387186871,1758622243974,-157.440802,0.00019177,2]
[387186872,1758622243983,-151.0,0.00019177,2]
[387186873,1758622243993,-151.0,0.00019177,2]
[387186874,1758622244002,-88.70306153,0.00019177,2]
[387186875,1758622244031,-621.76926377,0.00019064,2]
[387186876,1758622244611,-34.54956752,0.00019064,2]
[387186877,1758622244621,-656.31883129,0.00019064,2]
[387186878,1758622244631,-656.31883129,0.00019064,2]
[387186879,1758622244641,-656.31883129,0.00019064,2]
[387186880,1758622244650,-656.31883129,0.00019064,2]
[387186881,1758622244660,-656.31883129,0.00019064,2]
[387186882,1758622244669,-656.31883129,0.00019064,2]
[387186883,1758622244679,-656.31883129,0.00019064,2]
[387186884,1758622244689,-656.31883129,0.00019064,2]
[387186885,1758622244698,-656.31883129,0.00019064,2]
[387186886,1758622244707,-656.31883129,0.00019064,2]
[387186887,1758622244716,-656.31883129,0.00019064,2]
[387186888,1758622244726,-301.93563201,0.00019064,2]
[387186889,1758622244742,-354.38319928,0.00019064,2]
[387186890,1758622244751,-151.0,0.00019077,2]
[387186891,1758622244761,-177.556746,0.00019077,2]